Cogmind - Beta 17.1 @@@ ROGUE MODE // 2026.08.26 @ 22:10:15 Player: SunShine214 Result: Destroyed by S-27 Virus with Autogun Performance ------------- Evolutions (6) 3000 Regions Visited (8) 1600 Robots Destroyed (172) 860 Value Destroyed (6286) 6286 Prototype IDs (21) 420 Alien Tech Used (0) 0 Bonus (12658) 12658 TOTAL SCORE: 24824 Bonus ------- High Alert Combat Kills 151 Follower Combat Kills 57 Prayed to X0-1V1 5000 Major X0-1V1 Interference 6650 Registered with UFD 300 Met Optimus in HQ 500 Cogmind --------- Core Integrity 0/880 Matter 180/300 Energy 296/300 System Corruption 5% Temperature Cool (1) Movement Treading (160) Location -4/Factory Parts ------- > --- POWER (2) -------- (None) > --- PROPULSION (6) --- Medium Treads > --- UTILITY (7) ------ Advanced Heat Sink Large Storage Unit Improved Signal Interpreter X0-1V1's Piety Tracker > --- WEAPON (5) ------- Ionic Axe > --- INVENTORY (16) --- Improved Treads Advanced Coolant Injector Matter Compressor (126) Long-range Sensor Array Graphene Brace Scrapoid Pod Plasma Cutter CPS Tube (2) CPS Tube (2) Peak State ------------ > --- POWER ------------ Reinforced Fission Core Micro Fission Core > --- PROPULSION ------- Heavy Treads Heavy Treads Heavy Treads > --- UTILITY ---------- Advanced Heat Sink Advanced Heat Sink Large Storage Unit Long-range Sensor Array Improved Signal Interpreter Advanced Transmission Jammer X0-1V1's Piety Tracker > --- WEAPON ----------- Plasma Rifle Matter Neutralizer Hypervelocity Mass Driver Ionic Axe > --- INVENTORY -------- Improved Treads Medium Treads Medium Treads Centrium Wheel Advanced Coolant Injector Large Storage Unit Matter Compressor Long-range Sensor Array Graphene Brace Scrapoid Pod Long-range Missile Launcher Plasma Cutter CPS Tube CPS Tube Ionic Axe [Rating: 122] Favorites ----------- Power Heavy Ion Engine Engine Heavy Ion Engine Power Core Reinforced Fission Core Reactor Light Antimatter Reactor Propulsion Armored Treads Treads Armored Treads Leg Carbon-fiber Leg Wheel Centrium Wheel Utility X0-1V1's Piety Tracker Device X0-1V1's Piety Tracker Storage Large Storage Unit Processor Improved Signal Interpreter Hackware Hacking Suite Protection Hardened Light Armor Plating Weapon Advanced Assault Cannon Energy Gun Spread Laser Energy Cannon Heavy Particle Cannon Ballistic Gun Assault Rifle Ballistic Cannon Advanced Assault Cannon Launcher Grenade Launcher Special Weapon Mining Laser Impact Weapon Hammer Slashing Weapon Plasma Sword Build | -11 -10 -9 -9 -9 -9 -6 -5 -4 ------- Run | Yrd Mat Mat Sto Rec Scr Fac Fac Fac Slots Evolved 12 | . . 2 . . . 6 2 2 Power 1 | . . . . . . 1 . . Propulsion 4 | . . . . . . 2 . 2 Utility 5 | . . 2 . . . 1 2 . Weapon 2 | . . . . . . 2 . . Parts Attached 126 | 8 7 9 12 1 1 27 36 25 Power 17 | 1 . 3 3 . . 3 5 2 Engine 11 | 1 . 3 3 . . 2 2 . Core 5 | . . . . . . 1 3 1 Reactor 1 | . . . . . . . . 1 Propulsion 40 | 2 2 2 1 . 1 11 10 11 Treads 23 | 2 2 2 1 . 1 6 3 6 Leg 15 | . . . . . . 5 6 4 Wheel 2 | . . . . . . . 1 1 Hover . | . . . . . . . . . Flight . | . . . . . . . . . Utility 32 | 3 2 3 2 1 . 5 10 6 Device 17 | 1 1 1 . . . 2 7 5 Storage 5 | 2 1 . . 1 . . . 1 Processor 1 | . . . . . . . 1 . Hackware 1 | . . . . . . . 1 . Protection 8 | . . 2 2 . . 3 1 . Artifact . | . . . . . . . . . Weapon 37 | 2 3 1 6 . . 8 11 6 Energy Gun 7 | 1 . . 2 . . 2 1 1 Energy Cannon 4 | . . 1 . . . . 2 1 Ballistic Gun 4 | 1 . . . . . 1 2 . Ballistic Cannon 9 | . . . 1 . . 4 2 2 Launcher 4 | . 1 . 1 . . 1 . 1 Special Weapon 1 | . 1 . . . . . . . Impact Weapon 4 | . 1 . 2 . . . 1 . Slashing Weapon 4 | . . . . . . . 3 1 Piercing Weapon . | . . . . . . . . . Special Melee Weapon . | . . . . . . . . . Unidentified Prototypes 14 | . 1 . 3 . . 2 8 . Corrupted Parts 1 | . . . . . . . 1 . System Corruption 1 | . . . . . . . 1 . Parts Lost 72 | . 4 1 4 . . 13 17 33 Power 11 | . 1 . 1 . . 2 3 4 Propulsion 27 | . 1 1 1 . . 5 5 14 Utility 16 | . . . 1 . . 3 6 6 Weapon 18 | . 2 . 1 . . 3 3 9 Highest Loss Streak 16 | . 2 1 1 . . 6 13 16 To Critical Strikes 3 | . . . . . . 1 . 2 Average Backups 12 | . 4 8 10 11 15 12 14 14 Power . | . . . 1 1 1 1 1 . Propulsion 2 | . 2 3 2 2 2 . 4 3 Utility 2 | . 1 3 3 2 2 2 1 4 Weapon 3 | . 1 1 2 4 5 4 3 2 Tool/Special . | . . . . . . . . . Unused Backups 27 | . 2 2 6 . 3 1 4 9 Power 1 | . . . . . . . 1 . Propulsion 10 | . 2 1 4 . . . 1 2 Utility 7 | . . 1 . . 2 . 1 3 Weapon 4 | . . . 2 . 1 . 1 . Tool/Special 5 | . . . . . . 1 . 4 Average Slot Usage (%) 86 | . 96 88 95 97 77 84 90 72 Engine 6 | . 11 6 6 11 11 5 3 . Core 1 | . . . . . . 3 3 6 Treads 18 | . 27 21 22 22 22 21 7 5 Leg 3 | . . . . . . 1 13 9 Device 18 | . 14 21 22 22 22 12 18 23 Storage 8 | . 14 11 11 11 11 6 5 5 Processor 1 | . . . . . . . 4 5 Protection 6 | . . 5 11 11 11 6 4 . Energy Gun 5 | . 8 . 6 9 . 9 7 3 Energy Cannon 1 | . . 10 4 . . . . 1 Ballistic Gun 2 | . 12 . . . . 1 2 1 Ballistic Cannon 3 | . . . 6 9 . 8 5 1 Launcher 1 | . . 8 1 . . 3 . . Impact Weapon 1 | . 6 2 2 . . . . . Slashing Weapon 1 | . . . . . . . 4 4 Peak Build Rating 122 | 7 19 31 37 33 31 72 103 122 Average Rating 49 | 5 13 26 31 32 30 61 88 93 On Entrance 35 | . 7 17 31 33 29 31 72 102 Avg Prop Armor Cover (%) 8 | . . . . . . . 7 9 Naked Turns . | . . . . . . . . . Heaviest Build 98 | 13 18 31 32 42 35 73 98 86 Greatest Support 210 | 40 40 40 43 43 43 106 104 210 Greatest Overweight (x) 6 | . . 1 . . . 4 6 2 Average Overweight (x) . | . . . . . . . 1 . Largest Inventory Capacity 16 | 8 11 11 11 16 16 16 16 16 Average Capacity 14 | 7 9 11 11 14 16 16 16 16 Most Carried 16 | 1 8 11 11 13 16 16 16 16 Average Carried 12 | . 4 8 10 11 15 15 15 15 Final Capacity 16 | 8 11 11 11 16 16 16 16 16 Final Carried 16 | 1 7 11 11 13 16 16 16 10 Class Distribution -------------------- 59% | Mutant 12% | Tank 11% | Scavenger-Tank 9% | Scavenger-Skirmisher 3% | Scavenger-Mutant Dominant Class ---------------- Mutant | -10/Materials Mutant | -9/Materials Mutant | -9/Storage Mutant | -9/Recycling Mutant | -9/Scraptown Tank | -6/Factory Scavenger-Skirmisher | -5/Factory Scavenger-Mutant | -4/Factory Resources | -11 -10 -9 -9 -9 -9 -6 -5 -4 ----------- Run | Yrd Mat Mat Sto Rec Scr Fac Fac Fac Matter Collected 3998 | 295 201 599 339 . 10 1004 1104 446 Remotely . | . . . . . . . . . Salvage Created 7164 | 112 436 492 1059 . . 1359 1794 1912 Parts 309 | 8 32 38 44 . . 52 75 60 Haulers Intercepted 13 | . 1 1 4 . . 1 2 4 Recyclers Shooed 4 | 1 . . . . . 1 2 . Parts Field Recycled . | . . . . . . . . . Retrieved Matter . | . . . . . . . . . Parts Self-Destructed . | . . . . . . . . . Prevented . | . . . . . . . . . Parts Restored . | . . . . . . . . . Kills | -11 -10 -9 -9 -9 -9 -6 -5 -4 ------- Run | Yrd Mat Mat Sto Rec Scr Fac Fac Fac Combat Hostiles Destroyed 121 | . 14 12 16 . . 35 25 19 Melee 17 | . 3 2 . . . . 3 9 Guns 33 | . 9 . 4 . . 13 6 1 Cannons 44 | . . 4 11 . . 16 11 2 AOE 23 | . . 6 . . . 6 5 6 Classes Destroyed 18 | 2 5 3 1 . . 3 2 2 Worker 10 | . . 1 2 . . 2 2 3 Builder 6 | . . 1 1 . . 1 1 2 Tunneler 3 | 2 . . . . . 1 . . Hauler 13 | . 1 1 4 . . 1 2 4 Recycler 12 | 1 . 1 4 . . 1 2 3 Mechanic 1 | . . . . . . . . 1 Operator 3 | . 1 . 1 . . . 1 . Watcher 3 | . 1 . . . . 1 1 . Swarmer 25 | . 7 7 . . . 10 1 . Saboteur 1 | . . . . . . . . 1 Grunt 52 | . 7 2 7 . . 15 11 10 Brawler 2 | . . . . . . . 1 1 Duelist 3 | . . . 1 . . . 1 1 Sentry 17 | . . 3 8 . . 6 . . Specialist 2 | . . . . . . . 2 . Hunter 10 | . . . . . . 1 5 4 Programmer 6 | . . . . . . 1 3 2 Heavy 3 | . . . . . . 2 1 . Best Kill Streak 10 | 2 3 5 5 . . 7 5 10 Combat Bots Only 7 | . 3 4 3 . . 7 4 5 Max Kills in Single Turn 5 | 1 1 5 2 . . 3 3 3 Gunslinging . | . . . . . . . . . Exploded 4 | . . 4 . . . 3 3 2 Melee 1 | . 1 1 . . . . 1 1 Uniques/NPCs Destroyed . | . . . . . . . . . Combat | -11 -10 -9 -9 -9 -9 -6 -5 -4 -------- Run | Yrd Mat Mat Sto Rec Scr Fac Fac Fac Hostile Shots Fired 1232 | . 127 22 93 . . 326 264 400 Missed 371 | . 30 5 20 . . 113 68 135 Hits 861 | . 97 17 73 . . 213 196 265 Melee 7 | . . . 3 . . . 2 2 Projectile 854 | . 97 17 70 . . 213 194 263 AOE 1 | . . . . . . 1 . . Critical Strikes 37 | . 1 1 7 . . 10 5 13 Actively Blocked 8 | . . . . . . . 5 3 Part Disruptions 1 | . . . . . . . 1 . Damage Taken 15095 | . 942 238 1125 . . 3472 3834 5484 Core 1871 | . 222 22 105 . . 383 259 880 Absorbed by Shields . | . . . . . . . . . Core Remaining (%) 64 | 100 40 . . . 68 51 64 . Volleys Fired 281 | 5 47 21 51 . . 70 53 34 Largest 4 | 2 2 2 2 . . 4 3 4 Hottest 292 | 60 140 105 140 . . 235 202 292 Shots Fired 636 | 10 54 26 88 . . 217 153 88 Gun 310 | 10 50 . 35 . . 112 70 33 Cannon 297 | . . 21 50 . . 99 82 45 Launcher 26 | . 1 5 3 . . 6 1 10 Special 3 | . 3 . . . . . . . Kinetic 309 | 5 32 . 33 . . 117 94 28 Thermal 275 | . 3 21 52 . . 94 55 50 Explosive 26 | . 1 5 3 . . 6 1 10 Electromagnetic 26 | 5 18 . . . . . 3 . Robot Hit Streak 22 | 4 6 9 13 . . 15 22 12 Robot Miss Streak 6 | 1 4 3 4 . . 6 6 3 Penetration Max 2 | . . . . . . . 1 2 Secondary Targets 1 | . . . . . . 1 . . Max Gunslinging Chain 1 | . . . . . . 1 . . Shots Hit Robots 557 | 8 49 21 82 . . 172 123 102 Core Hits 413 | 4 17 17 75 . . 139 97 64 Critical Kills 5 | . 1 . . . . . 2 2 Critical Parts Destroyed 13 | 1 3 . 1 . . . 3 5 Critical Strikes 41 | 1 5 . 5 . . 6 12 12 Burn 4 | . . . . . . . . 4 Destroy 13 | 1 . . . . . . 5 7 Blast 13 | . . . 4 . . 6 3 . Corrupt 1 | . 1 . . . . . . . Smash 5 | . 4 . 1 . . . . . Sever 5 | . . . . . . . 4 1 Melee Attacks 134 | . 33 5 13 . . . 27 56 Impact 51 | . 33 5 13 . . . . . Slashing 83 | . . . . . . . 27 56 Piercing . | . . . . . . . . . Sneak Attacks 22 | . 2 1 5 . . . 4 10 Combat Hostiles 1 | . . . . . . . 1 . Follow-up Attacks . | . . . . . . . . . Damage Inflicted 19940 | 108 1137 860 2243 . . 4713 5066 5813 Guns 5254 | 104 357 . 556 . . 2215 1421 601 Cannons 6192 | . . 375 860 . . 1936 2190 831 Explosions 3583 | . 31 311 154 . . 544 636 1907 Melee 4865 | . 749 160 663 . . . 819 2474 Ramming 46 | 4 . 14 10 . . 18 . . Kinetic 5402 | 68 254 . 560 . . 2209 1989 322 Thermal 5985 | . . 375 856 . . 1942 1702 1110 Explosive 3201 | . 31 311 154 . . 544 386 1775 Electromagnetic 441 | 36 103 . . . . . 170 132 Impact 1572 | . 749 160 663 . . . . . Slashing 3293 | . . . . . . . 819 2474 Piercing . | . . . . . . . . . Highest Corruption 16 | . 10 . . . . . 16 5 Average Corruption 5 | . 10 . . . . . 5 4 Corruption Purged . | . . . . . . . . . Corruption Blocked . | . . . . . . . . . Effects 21 | . 1 . . . . . 11 9 Message Errors 9 | . 1 . . . . . 4 4 Matter Fused 4 | . . . . . . . 2 2 Heat Flow Errors 1 | . . . . . . . . 1 Energy Discharges 2 | . . . . . . . 2 . Data Loss (minor) 4 | . . . . . . . 3 1 Weapon Failures 1 | . . . . . . . . 1 Overload Shots . | . . . . . . . . . Overflow Damage 1003 | . 124 40 393 . . 27 150 269 Projectiles 98 | . . 25 34 . . . 36 3 Explosions 136 | . . 15 . . . 27 . 94 Melee 769 | . 124 . 359 . . . 114 172 Knockbacks 38 | . 3 . 6 . . 13 12 4 Impact 5 | . 3 . 2 . . . . . Kinetic 32 | . . . 4 . . 12 12 4 Secondary 1 | . . . . . . 1 . . Self-Inflicted Damage 459 | . 10 39 52 . . 238 21 99 Shots 15 | . 1 4 1 . . 5 1 3 Rammed 12 | 2 2 1 3 . . 4 . . Targets Rammed 13 | 2 2 1 3 . . 5 . . Kicked . | . . . . . . . . . Crushed 1 | . . . . . . 1 . . Highest Temperature 528 | . 120 12 302 . . 388 528 344 Average Temperature 127 | . 56 5 70 . . 149 162 116 Received Heat Transfer 2347 | . 294 60 465 . . 652 246 630 Effects 13 | . . . . . . 6 6 1 Shutdowns 6 | . . . . . . 2 4 . Energy Bleed 2 | . . . . . . . 1 1 Interference 4 | . . . . . . 4 . . Damage (minor) 1 | . . . . . . . 1 . Siege Activations . | . . . . . . . . . Martial Activations . | . . . . . . . . . Shielding Activations . | . . . . . . . . . Robots Disrupted 2 | . . . . . . . 2 . Combat Hostiles 2 | . . . . . . . 2 . Robots Corrupted 7 | . 3 . 4 . . . . . Combat Hostiles 2 | . 2 . . . . . . . Parts Fried 11 | . 3 . 5 . . . 3 . Impact Corruptions 16 | . 6 . 10 . . . . . Robots Melted 3 | . . . 1 . . . . 2 Combat Hostiles 2 | . . . 1 . . . . 1 Parts Melted 13 | . . 3 1 . . 5 2 2 Heat Transferred 8104 | . . 555 1119 . . 3425 880 2125 Parts Sabotaged . | . . . . . . . . . Parts Stolen . | . . . . . . . . . Parts Stripped . | . . . . . . . . . Power Chain Reactions 1 | . . . . . . . 1 . Alert | -11 -10 -9 -9 -9 -9 -6 -5 -4 ------- Run | Yrd Mat Mat Sto Rec Scr Fac Fac Fac Maximum Alert Level 2 | . . . . . . 2 2 2 Low Security (%) 78 | 100 100 100 100 100 . 74 53 47 Level 1 17 | . . . . . . 24 29 47 Level 2 4 | . . . . . . 1 17 5 Level 3 . | . . . . . . . . . Level 4 . | . . . . . . . . . Level 5 . | . . . . . . . . . High Security . | . . . . . . . . . Max Security . | . . . . . . . . . Sterilizations 1 | . . . . . . . 1 . Peak Influence 588 | 5 184 170 144 182 . 402 588 501 Initial 266 | . . 66 61 42 . . 187 266 Average 143 | 1 45 107 61 92 . 169 230 228 Influence Increases 4575 | 15 445 472 553 192 . 1035 1068 795 Destroy 0b10 Robot/C 2440 | . 280 240 320 . . 700 520 380 Destroy 0b10 Robot/NC 285 | 15 15 25 60 . . 35 70 65 Destroy Leader 554 | . 44 64 118 . . 164 106 58 Allied During Kill 21 | . . 9 . . . . 12 . Successful Hack 34 | . . 8 14 . . 5 7 . Disable Machine 435 | . 15 30 15 . . 15 255 105 Destroy Structure 404 | . 16 51 26 . . 71 68 172 Lose Combat Pursuer 210 | . 75 45 . . . 45 30 15 Miscellaneous 192 | . . . . 192 . . . . Influence Decreases 4230 | 15 287 484 591 218 82 652 907 994 Entered New Map 799 | . . 92 85 66 82 . 196 278 Time Decay 2631 | 15 247 302 466 152 . 522 541 386 Lost Part 720 | . 40 10 40 . . 130 170 330 Lost Ally 80 | . . 80 . . . . . . Squads Dispatched 31 | . 2 . 1 . . 11 10 7 Investigation 8 | . 1 . . . . 2 3 2 Extermination 5 | . . . . . . 2 2 1 Reinforcement 14 | . 1 . 1 . . 5 4 3 Assault 2 | . . . . . . . 1 1 Garrison 2 | . . . . . . 2 . . Intercept . | . . . . . . . . . Searches Triggered . | . . . . . . . . . Construction Impeded 1 | . . . . . . 1 . . Haulers Reinforced 3 | . . . . . . 1 . 2 Active Scanning Responses . | . . . . . . . . . Cargo Convoy Interrupts 2 | . . . . . . 1 1 . Stealth | -11 -10 -9 -9 -9 -9 -6 -5 -4 --------- Run | Yrd Mat Mat Sto Rec Scr Fac Fac Fac Distress Signals 10 | . 2 1 3 . . 1 3 . Communications Jammed 33 | . . . . . . . . 33 Distress Signals 33 | . . . . . . . . 33 Times Spotted 197 | . 40 17 23 . . 45 41 31 Peak Tracking Total 8 | . 6 4 6 . . 5 6 8 Tactical Retreats 10 | . 3 1 . . . 3 2 1 Traps | -11 -10 -9 -9 -9 -9 -6 -5 -4 ------- Run | Yrd Mat Mat Sto Rec Scr Fac Fac Fac Traps Triggered 5 | . . . . . . . 4 1 Indirectly 2 | . . . . . . . 2 . Trap Hack Attempts . | . . . . . . . . . Triggered . | . . . . . . . . . Disarmed . | . . . . . . . . . Reprogrammed . | . . . . . . . . . Reused . | . . . . . . . . . Traps Extracted . | . . . . . . . . . Installed . | . . . . . . . . . Triggered . | . . . . . . . . . Machines | -11 -10 -9 -9 -9 -9 -6 -5 -4 ---------- Run | Yrd Mat Mat Sto Rec Scr Fac Fac Fac Machines Disabled 29 | . 1 2 1 . . 1 17 7 Max in Single Turn 10 | . 1 1 1 . . 1 10 4 Garrison Access 4 | . . . 1 . . 2 . 1 Machines Repaired . | . . . . . . . . . Machines Dismantled . | . . . . . . . . . Machines Sabotaged . | . . . . . . . . . Overloaded Fab Kills . | . . . . . . . . . Hacking | -11 -10 -9 -9 -9 -9 -6 -5 -4 --------- Run | Yrd Mat Mat Sto Rec Scr Fac Fac Fac Machines Accessed 28 | . 2 1 6 . 6 5 5 3 Terminals 11 | . 2 1 5 . . . 2 1 Fabricators 2 | . . . . . . 2 . . Repair Stations . | . . . . . . . . . Recycling Units 4 | . . . . . . 1 3 . Scanalyzers . | . . . . . . . . . Garrison Access 5 | . . . 1 . . 2 . 2 Total Hacks 59 | . 5 1 13 . 17 8 7 8 Successful 32 | . 2 1 3 . 17 4 4 1 Failed 27 | . 3 . 10 . . 4 3 7 Catastrophic 5 | . . . 2 . . 1 . 2 Database Lockouts . | . . . . . . . . . Manual 18 | . 1 1 5 . . 1 6 4 Terminals 23 | . 5 1 10 . . . 3 4 Fabricators 5 | . . . . . . 5 . . Repair Stations . | . . . . . . . . . Recycling Units 5 | . . . . . . 1 4 . Scanalyzers . | . . . . . . . . . Garrison Access 9 | . . . 3 . . 2 . 4 Terminal Hacks 23 | . 2 1 2 . 17 . 1 . Record 11 | . . . . . 11 . . . Robot Analysis 5 | . . . . . 5 . . . Open Door 2 | . . . 2 . . . . . Branch Access Points 1 | . . 1 . . . . . . Recycling Unit Index 1 | . . . . . . . 1 . Hauler Manifests 1 | . 1 . . . . . . . Registered Components 1 | . 1 . . . . . . . Proto ID Catalog 1 | . . . . . 1 . . . Fabricator Hacks 1 | . . . . . . 1 . . Build 1 | . . . . . . 1 . . Repair Station Hacks . | . . . . . . . . . Recycling Unit Hacks . | . . . . . . . . . Scanalyzer . | . . . . . . . . . Garrison Access Hacks 4 | . . . 1 . . 2 . 1 Seal Access 4 | . . . 1 . . 2 . 1 Unauthorized Hacks 4 | . . . . . . 1 3 . Terminals . | . . . . . . . . . Fabricators . | . . . . . . . . . Repair Stations . | . . . . . . . . . Recycling Units 4 | . . . . . . 1 3 . Fedlink 4 | . . . . . . 1 3 . Scanalyzers . | . . . . . . . . . Garrison Access . | . . . . . . . . . Data Cores Recovered 2 | . . . . . . . 2 . Used . | . . . . . . . . . Hacking Detections 10 | . 2 . 3 . . 1 2 2 Full Trace Events 4 | . 1 . . . . 1 . 2 Feedback Events 1 | . . . . . . . . 1 Hackware Fried 1 | . . . . . . . . 1 Feedback Blocked . | . . . . . . . . . Robot Schematics Acquired . | . . . . . . . . . Robots Built . | . . . . . . . . . Authchips . | . . . . . . . . . Time . | . . . . . . . . . Total Robot Build Rating . | . . . . . . . . . Part Schematics Acquired . | . . . . . . . . . Parts Built 2 | . . . . . . 2 . . Authchips . | . . . . . . . . . Time 117 | . . . . . . 117 . . Total Part Build Rating 14 | . . . . . . 14 . . Part Studies Acquired . | . . . . . . . . . Parts Repaired . | . . . . . . . . . Time . | . . . . . . . . . Parts Recycled . | . . . . . . . . . Recycled Matter . | . . . . . . . . . Retrieved Matter . | . . . . . . . . . Retrieved Components . | . . . . . . . . . Parts Scanalyzed . | . . . . . . . . . Part Schematics Acquired . | . . . . . . . . . Parts Damaged . | . . . . . . . . . Bothacking | -11 -10 -9 -9 -9 -9 -6 -5 -4 ------------ Run | Yrd Mat Mat Sto Rec Scr Fac Fac Fac Used RIF Installer . | . . . . . . . . . Robots Hacked . | . . . . . . . . . Non-combat . | . . . . . . . . . Combat . | . . . . . . . . . Robot Hacks Applied . | . . . . . . . . . Relay Couplers Released . | . . . . . . . . . Fabnet Peak Effective % . | . . . . . . . . . Robots Rewired . | . . . . . . . . . Allies Hacked . | . . . . . . . . . Hacks Repelled . | . . . . . . . . . Allies | -11 -10 -9 -9 -9 -9 -6 -5 -4 -------- Run | Yrd Mat Mat Sto Rec Scr Fac Fac Fac Total Allies 5 | . . 4 . . . . 1 . Largest Group 4 | . . 4 . . . . 1 . Highest-Rated Group 110 | . . 40 . . . . 110 . Highest-Rated Ally 110 | . . 10 . . . . 110 . Initial UFD Resources 57 | . . . . . . 23 37 57 Total Orders . | . . . . . . . . . Ally Attacks 20 | . . 3 . . . . 17 . Total Damage 731 | . . 20 . . . . 711 . Kills 7 | . . 1 . . . . 6 . Allies Corrupted . | . . . . . . . . . Allies Melted . | . . . . . . . . . X0-1V1 Amusement Gains 117 | . 7 . . . . 40 10 60 Average Entertainment 20 | . 4 15 6 1 . 25 28 32 Good Acts 44 | . 14 5 5 2 . 6 8 4 Bad Acts 40 | . 10 . 2 2 . 8 9 9 Intel | -11 -10 -9 -9 -9 -9 -6 -5 -4 ------- Run | Yrd Mat Mat Sto Rec Scr Fac Fac Fac Active Infowar (turns) 1871 | 25 428 . . . . . 711 707 Sensors 1418 | . . . . . . . 711 707 Seismic 453 | 25 428 . . . . . . . Jamming 325 | . . . . . . . . 325 Robot Analysis Total 5 | . . . . . 5 . . . Derelict Logs Recovered . | . . . . . . . . . Drone Launches . | . . . . . . . . . Drone Recoveries . | . . . . . . . . . Exploration | -11 -10 -9 -9 -9 -9 -6 -5 -4 ------------- Run | Yrd Mat Mat Sto Rec Scr Fac Fac Fac Turns Passed 9175 | 116 1034 669 1181 320 1836 1555 1556 908 Spaces Moved 4498 | 56 334 348 548 192 1109 743 747 421 Core 4 | 4 . . . . . . . . Treads 3585 | 52 334 348 548 192 1109 694 205 103 Legs 668 | . . . . . . 49 408 211 Wheels 241 | . . . . . . . 134 107 Hover . | . . . . . . . . . Flight . | . . . . . . . . . Fastest Speed 50 | 50 160 160 165 165 165 120 112 110 Average Speed 161 | 152 160 166 168 165 165 165 153 140 Slowest Speed 400 | 160 160 240 170 165 165 400 210 190 Overloaded Moves . | . . . . . . . . . Propulsion Burnouts . | . . . . . . . . . Robots Hopped . | . . . . . . . . . Potential Cave-ins . | . . . . . . . . . Cave-ins Triggered . | . . . . . . . . . Exploration Rate (%) 36 | 5 63 32 85 34 60 20 19 14 Regions Visited 8 Branch Regions 3 Pre-discovered Areas 1 | . . . . . . . 1 . Known Exits Taken 3 | . 1 1 . . . . 1 . Unknown Exits Taken 5 | 1 . . 1 1 1 1 . . Scrap Searched 2 | . . . . . 2 . . . Spaces Dug 11 | . 3 1 1 . . . 3 3 Terrain Destroyed 310 | . 13 49 38 . . 65 44 101 Melee 6 | . . . . . . . 3 3 Projectile 46 | . 3 5 4 . . 7 21 6 AOE 258 | . 10 44 34 . . 58 20 92 Terrain Rammed . | . . . . . . . . . Walls Destroyed . | . . . . . . . . . Machines Disabled . | . . . . . . . . . Actions | -11 -10 -9 -9 -9 -9 -6 -5 -4 --------- Run | Yrd Mat Mat Sto Rec Scr Fac Fac Fac Total 5661 | 73 712 401 698 197 1120 891 984 585 Wait 406 | . 276 5 44 . . 16 55 10 Move 4490 | 55 333 347 547 191 1108 742 746 421 Hop . | . . . . . . . . . Pick Up 72 | 1 7 6 11 1 6 10 16 14 Fast Attach 61 | 8 1 3 2 . . 17 16 14 Attach 39 | . 2 2 3 . . 9 8 15 Detach 13 | 1 . . 1 2 . 4 1 4 Swap 66 | . 8 6 11 1 1 8 28 3 Drop 70 | 1 3 5 12 2 5 10 18 14 Fire 281 | 5 47 21 51 . . 70 53 34 Melee 134 | . 33 5 13 . . . 27 56 Ram . | . . . . . . . . . Kick . | . . . . . . . . . Crush 13 | 2 2 1 3 . . 5 . . Escape Stasis 16 | . . . . . . . 16 . Rewire . | . . . . . . . . . Trap . | . . . . . . . . . Miscellaneous . | . . . . . . . . . Route ------- -11/Scrapyard -10/Materials (discovered 4 exits: *Mat x2 / [*Min] / [*Sub]) -9/Materials (discovered 4 exits: [*Mat] / Min / *Sto x2) -9/Storage (discovered 2 exits: [*Mat] / [*Rec]) -9/Recycling (discovered 2 exits: Fac / *Scr) -9/Scraptown (discovered 2 exits: *Fac x2) -6/Factory (discovered 2 exits: *Fac / [*Low]) -5/Factory (discovered 2 exits: *Fac x2) -4/Factory History --------- Turn | Location | Event 22 | -11/Scrapyard | Discovered new exit (range 16) 117 | -11/Scrapyard | Entered Materials 308 | -10/Materials | Build established: Mutant 520 | -10/Materials | Discovered new exit (range 10) 544 | -10/Materials | Prayed at D.C.S.S. Altar Unit 788 | -10/Materials | Discovered new exit (range 5) 934 | -10/Materials | Core integrity fell below 50% 1016 | -10/Materials | Inventory capacity permanently improved by X0-1V1 (+1; -100 max core) 1028 | -10/Materials | X0-1V1 activates XOMVISION 1031 | -10/Materials | Identified exit to Materials 1031 | -10/Materials | X0-1V1 revealed exit location to -9/Materials 1033 | -10/Materials | Core integrity restored by X0-1V1 (+33) 1036 | -10/Materials | Discovered new exit (range 9) 1036 | -10/Materials | X0-1V1 sent you into danger 1043 | -10/Materials | X0-1V1 downgraded hostiles (x1) 1076 | -10/Materials | X0-1V1 caused items to flee you 1083 | -10/Materials | X0-1V1 sent hostile G-34 Mercenary (x4) 1086 | -10/Materials | X0-1V1 vaporized surrounding terrain (radius 19) 1113 | -10/Materials | System corruption reached 10% 1151 | -10/Materials | Entered another Materials area 1151 | -9/Materials | Evolved 2 slots: Utility x2 1282 | -9/Materials | Discovered new exit (range 17) 1412 | -9/Materials | Melee accuracy permanently improved by X0-1V1 (+7%; -70 max core) 1451 | -9/Materials | X0-1V1 sent you to a vault 1525 | -9/Materials | Lost 3 allies 1611 | -9/Materials | Discovered new exit (range 12) 1752 | -9/Materials | Discovered new exit (range 10) 1784 | -9/Materials | Identified exit to Mines 1784 | -9/Materials | Identified exit to Storage 1820 | -9/Materials | Entered Storage 2332 | -9/Storage | X0-1V1 activates XOMVISION 2356 | -9/Storage | X0-1V1 foreshadows a heat wave 2648 | -9/Storage | Ambient heat levels rising (+10) 2678 | -9/Storage | Core integrity restored by X0-1V1 (+48) 2858 | -9/Storage | Ambient heat levels rising (+10) 2877 | -9/Storage | Discovered new exit (range 14) 2996 | -9/Storage | Used back door to open Recycling access 2996 | -9/Storage | Discovered new exit (range 4) 3001 | -9/Storage | Entered Recycling 3120 | -9/Recycling | X0-1V1 added 0b10 threat records associated with you (considerable) 3139 | -9/Recycling | Identified exit to Factory 3139 | -9/Recycling | X0-1V1 revealed exit location to -7/Factory 3152 | -9/Recycling | X0-1V1 activates XOMVISION 3279 | -9/Recycling | Scanned before Scraplab entrance 3305 | -9/Recycling | Entered Scraplab 3318 | -9/Recycling | Discovered new exit (range 2) 3321 | -9/Recycling | Entered Scraptown 3412 | -9/Scraptown | Visited Observation Area 3453 | -9/Scraptown | Heard Great Nut preacher, LISTEN AND RECITE! 3478 | -9/Scraptown | Visited CPS Storage 3513 | -9/Scraptown | Visited Cyclists 3592 | -9/Scraptown | Visited UFD Registry 3592 | -9/Scraptown | Registered with UFD as "Spikeplate" 3638 | -9/Scraptown | Entered Cyclist Reading Room 3772 | -9/Scraptown | Discovered new exit (range 11) 3897 | -9/Scraptown | Visited Analyses Database 3935 | -9/Scraptown | Visited Science Guys 3989 | -9/Scraptown | Visited Chapter 10 4237 | -9/Scraptown | Visited Abandonware Association 4257 | -9/Scraptown | Learned abandonware demo "TRNCOAT.EXE" 4302 | -9/Scraptown | Visited Scrapoid Pod Storage 4311 | -9/Scraptown | Found Scrapoid Pod 4345 | -9/Scraptown | Visited DA-N13 Charitable Foundation 4352 | -9/Scraptown | Found DCF Scrap (30 items) 4406 | -9/Scraptown | Visited Modified Component R&D 4482 | -9/Scraptown | Visited Scrap Suit Storage 4510 | -9/Scraptown | Visited Research Penetration Think Tank 4550 | -9/Scraptown | Visited Cartography Club 5052 | -9/Scraptown | Met Optimus 5052 | -9/Scraptown | Accepted into 0bPrime 5146 | -9/Scraptown | Discovered new exit (range 5) 5157 | -9/Scraptown | Entered Factory 5157 | -6/Factory | Evolved 6 slots: Power x1, Propulsion x2, Utility x1, Weapon x2 5228 | -6/Factory | Energy capacity permanently improved by X0-1V1 (+200; -100 max core) 5242 | -6/Factory | Destroyed 7 combat bots 5477 | -6/Factory | Garrison activated, responded to threat 5492 | -6/Factory | Build established: Tank 5894 | -6/Factory | Discovered new exit (range 12) 5971 | -6/Factory | X0-1V1 caused items to flee you 6058 | -6/Factory | X0-1V1 sent you into danger 6142 | -6/Factory | Items stopped fleeing you 6171 | -6/Factory | Lost 4 parts (1p1n2w) 6191 | -6/Factory | X0-1V1 activates XOMVISION 6353 | -6/Factory | Lost 6 parts (1p3n1u1w) 6383 | -6/Factory | X0-1V1 put everyone to sleep 6418 | -6/Factory | Cargo convoy interrupted 6482 | -6/Factory | Loaded intel: 8 recycling unit locations 6492 | -6/Factory | Garrison activated, responded to threat 6535 | -6/Factory | Fabricated Phase Gun? 6592 | -6/Factory | Discovered new exit (range 8) 6699 | -6/Factory | Build established: Scavenger-Tank 6712 | -6/Factory | Entered another Factory area 6712 | -5/Factory | Evolved 2 slots: Utility x2 7132 | -5/Factory | Build established: Scavenger-Skirmisher 7153 | -5/Factory | Identified exit to Factory 7153 | -5/Factory | X0-1V1 revealed exit location to -4/Factory 7216 | -5/Factory | X0-1V1 sent you to a vault 7228 | -5/Factory | Found Imp. Powered Armor 7232 | -5/Factory | Found Prototype Device 7232 | -5/Factory | Identified Exp. Sensor Array 7349 | -5/Factory | Loaded intel: 8 recycling unit locations 7349 | -5/Factory | Learned location of Protoforge (-2) 7599 | -5/Factory | Lost 3 parts (1p2u) 7740 | -5/Factory | X0-1V1 activates XOMVISION 7864 | -5/Factory | Cargo convoy interrupted 7880 | -5/Factory | Build established: Scavenger-Tank 7979 | -5/Factory | Discovered exit to Factory (range 12) 8066 | -5/Factory | X0-1V1 made a cryptic comment about sterilization and BL-4Z3 8119 | -5/Factory | Sterilization system engaged 8119 | -5/Factory | Non-combat units ordered to evacuate 8144 | -5/Factory | X0-1V1 upgraded hostiles (x2) 8152 | -5/Factory | X0-1V1 sent allied Lightning (x1) 8174 | -5/Factory | X0-1V1 announced a LAN party 8181 | -5/Factory | Lost 13 parts (2p5n3u3w) 8191 | -5/Factory | System corruption reached 10% 8219 | -5/Factory | Combat units ordered to evacuate 8268 | -5/Factory | Entered another Factory area 8268 | -4/Factory | Evolved 2 slots: Propulsion x2 8276 | -4/Factory | X0-1V1 redirected Transport squads to designated parking area 8296 | -4/Factory | Hacking Suite fried by hacking feedback 8583 | -4/Factory | Lost 16 parts (2p8n2u4w) 9005 | -4/Factory | Build established: Scavenger-Mutant 9037 | -4/Factory | Core integrity fell below 50% 9130 | -4/Factory | Core integrity fell below 20% 9132 | -4/Factory | X0-1V1 upgraded hostiles (x2) 9173 | -4/Factory | Weapon slot count temporarily expanded by X0-1V1 (+1) 9176 | -4/Factory | Destroyed by S-27 Virus with Autogun Last Messages --------------- 09156_ Slug penetrates Megafabricator. 09157_ Hyp. Mass Driver destroyed. 09159_ K-01 Serf collects debris. 09162_ X0-1V1 connects you with a stream of twisted latent energy (+14 energy generation). 09163_ K-01 Serf collects debris. 09164_ Lrn. Sensor Array destroyed. 09164_ Adv. Heat Sink destroyed. 09166_ Slug penetrates Wall. 09167_ Med. Treads destroyed. 09173_ X0-1V1: "Weapons, camera, action!" (+1 weapon slot) 09174_ Slug penetrates Wall. 09174_ Penetrated by Slug. 09174_ Slug penetrates Wall. 09174_ Slug penetrates S-27 Virus. 09174_ S-27 Virus destroyed. 09174_ Slug penetrates Wall. 09174_ Centrium Wheel destroyed. 09176_ X0-1V1 giggles madly! Map ----- +----------------------------------------------------+ | ?????????????????????????????????????????????????? | | ?????????????????????????????????????????????????? | | ?????????????????????????????????????????????????? | | ?????????????????????????????????????????????????? | | ?????????????????????????????????????????????????? | | ?????????????????????????????????????????????????? | | ?????????????????????????????????????????????????? | | ?????????????????????????????????????????????????? | | ?????????????????????????????????????????????????? | | ?????????????????????????????????????????????????? | | ?????????????????????????????????????????????????? | | ?????????????????????????????????????????????????? | | ?????????????????????????????????????????????????? | | ?????????????????????????????????????????????????? | | ?????????????????????????????????????????????????? | | ?????????????????????????????????????????????????? | | ?????????????????##################??????????????? | | ???????????????k/? [ #?????????????? | | ????????????????# ??????????????? | | ????????????????# """ """ """ """ #?????????????? | | ????????????????# """ """ """ """ #?????????????? | | ????????????????? """ """ """ """???????????????? | | ??????????????????? k k ?????????????????? | | ????????????????????? k ???????????????????? | | ??????????????????????? ?????????????????????? | | ???????????????##########@#########??????????????? | | ???????????????# #??????????????? | | ???????????????# ##### #??????????????? | | ???????????????# #????????????????????? | | ???????????????# =ss #????????????????????? | | ???????????????# [% s #????????????????????? | | ???????????????# #### ###????????????????????? | | ???????????????# #??# #??????????????????????? | | ???????????????# h #??# #??????????????????????? | | ???????????????# h #??# #??????????????????????? | | ???????????????# #??# #??????????????????????? | | #########+###### #??#+#??????????????????????? | | # k #???????????????????????????? | | # #???????????????????????????? | | # H !!*#???????????????????????????? | | # !* #??!????????????????????????? | | # """""" !* #?!!????????????????????????? | | / """""" %# ?????????????????????????? | | # """""" " ? ???????????????????????? | | # %"""""" %# ??????????????????????? | | " """""" =![# ??????????????????????? | | # %""""" =! # "?????????????????????? | | # """" !! "?????????????????????? | | # """"" % ????????????????????? | | #########% "" % #######????????????????????? | +----------------------------------------------------+ Best States ------------- Heat Dissipation 137 Energy Generation 35 Energy Capacity 1920 Matter Stores 800 Matter Capacity 800 Sight Range 22 Robot Scan Range 20 Terrain Scan Density 10 Jamming Range 16 Armor Coverage 600 Weapon Cycling 15 Evasion (%) 70 Recoil Reduction 6 Offensive Hacking 10 Item Schematics ----------------- None Robot Schematics ------------------ None Fabricated ------------ Phase Gun | x2 | -6/Factory | Preloaded Repaired ---------- Nothing Studied --------- None Alien Tech Used ----------------- None Achievements -------------- None Challenges ------------ None Game ------ Seed MachineNetworkRipper Manual? 0 Play Time 01:05:40 Cumulative 190.8 hours Start 2026.08.26 @ 21:01:09 End 2026.08.26 @ 22:10:15 Sessions 1 Manual Loads 0 Difficulty Rogue Special Mode None Game No. 301 Rogue 301 Adventurer 0 Explorer 0 Win Type - Total 1 Types 1/0/0/0/0/0/0/0/0/0 Lore% 65 Gallery% 60 Achievement% 46 Wizard Run 0 Options --------- Layout 1 ASCII 0 Keyboard 1 Movement Arrows Keybinds 0 Fullscreen 1 Font 24/Smallcaps Map View 50x35 Zoom Use 0% Tactical HUD 1 Map Filters NONE Filters NONE Steam 1 RUN: ac404c13-9e0a-4b0e-8817-72ecb03969ac